Cogmind - Beta 16 @@@ ROGUE MODE // 2025.12.26 @ 03:14:58 Player: theogungabunga Result: Self-destructed Performance ------------- Evolutions (1) 500 Regions Visited (3) 600 Robots Destroyed (13) 65 Value Destroyed (256) 256 Prototype IDs (0) 0 Alien Tech Used (0) 0 Bonus (200) 200 TOTAL SCORE: 1621 Bonus ------- Pacifist 200 Cogmind --------- Core Integrity 192/400 Matter 208/300 Energy 250/250 System Corruption 0% Temperature Cool (0) Movement Walking (190) Ox1 Location -9/Materials Parts ------- > --- POWER (1) -------- Ion Engine > --- PROPULSION (3) --- Aluminum Leg > --- UTILITY (3) ------ Small Storage Unit > --- WEAPON (2) ------- Heavy Assault Rifle > --- INVENTORY (8) ---- Light Ion Engine Light Ion Engine Light Ion Engine Medium Laser Small Laser Mining Laser Peak State ------------ > --- POWER ------------ Ion Engine > --- PROPULSION ------- Aluminum Leg Aluminum Leg > --- UTILITY ---------- Small Storage Unit Light Armor Plating > --- WEAPON ----------- Heavy Assault Rifle Heavy Assault Rifle > --- INVENTORY -------- Light Ion Engine Light Ion Engine Light Ion Engine Medium Laser Small Laser Mining Laser [Rating: 9] Favorites ----------- Power Ion Engine Engine Ion Engine Propulsion Aluminum Leg Leg Aluminum Leg Utility Small Storage Unit Storage Small Storage Unit Protection Light Armor Plating Weapon Medium Laser Energy Gun Medium Laser Ballistic Gun Heavy Assault Rifle Build | -11 -10 -10 -9 ------- Run | Yrd Mat Min Mat Slots Evolved 2 | . . . 2 Power . | . . . . Propulsion 1 | . . . 1 Utility 1 | . . . 1 Weapon . | . . . . Parts Attached 11 | 6 . . 5 Power 1 | 1 . . . Engine 1 | 1 . . . Core . | . . . . Reactor . | . . . . Propulsion 2 | 2 . . . Treads . | . . . . Leg 2 | 2 . . . Wheel . | . . . . Hover . | . . . . Flight . | . . . . Utility 4 | 1 . . 3 Device . | . . . . Storage 2 | 1 . . 1 Processor . | . . . . Hackware . | . . . . Protection 2 | . . . 2 Artifact . | . . . . Weapon 4 | 2 . . 2 Energy Gun 2 | 2 . . . Energy Cannon . | . . . . Ballistic Gun 2 | . . . 2 Ballistic Cannon . | . . . . Launcher . | . . . . Special Weapon . | . . . . Impact Weapon . | . . . . Slashing Weapon . | . . . . Piercing Weapon . | . . . . Special Melee Weapon . | . . . . Unidentified Prototypes . | . . . . Parts Lost 4 | . . . 4 Power . | . . . . Propulsion 1 | . . . 1 Utility 2 | . . . 2 Weapon 1 | . . . 1 Highest Loss Streak 3 | . . . 3 To Critical Strikes . | . . . . Average Backups 3 | . 1 2 4 Power 1 | . 1 1 2 Propulsion . | . . . . Utility . | . . . . Weapon 1 | . . 1 1 Tool/Special . | . . . . Unused Backups 4 | . . . 4 Power 3 | . . . 3 Propulsion . | . . . . Utility . | . . . . Weapon 1 | . . . 1 Tool/Special . | . . . . Average Slot Usage (%) 78 | . 85 85 74 Engine 12 | . 14 14 11 Leg 24 | . 28 28 22 Storage 12 | . 14 14 11 Protection 4 | . . . 8 Energy Gun 22 | . 28 28 19 Ballistic Gun 1 | . . . 2 Peak Build Rating 9 | 6 6 6 9 Average Rating 6 | 4 6 6 7 On Entrance 4 | . 6 6 6 Avg Prop Armor Cover (%) . | . . . . Naked Turns . | . . . . Heaviest Build 21 | 13 13 13 21 Greatest Support 20 | 20 20 20 20 Greatest Overweight (x) 1 | . . . 1 Average Overweight (x) . | . . . . Largest Inventory Capacity 8 | 8 8 8 8 Average Capacity 7 | 7 8 8 8 Most Carried 7 | 3 2 2 7 Average Carried 3 | . 1 2 4 Final Capacity 8 | 8 8 8 8 Final Carried 6 | 1 2 2 6 Class Distribution -------------------- 100% | Mutant Dominant Class ---------------- Mutant | -10/Materials Mutant | -10/Mines Mutant | -9/Materials Resources | -11 -10 -10 -9 ----------- Run | Yrd Mat Min Mat Matter Collected 288 | 193 . . 95 Remotely . | . . . . Salvage Created 334 | . . . 334 Parts 26 | . . . 26 Haulers Intercepted . | . . . . Recyclers Shooed . | . . . . Parts Field Recycled . | . . . . Retrieved Matter . | . . . . Parts Self-Destructed . | . . . . Prevented . | . . . . Parts Restored . | . . . . Kills | -11 -10 -10 -9 ------- Run | Yrd Mat Min Mat Combat Hostiles Destroyed 12 | . . . 12 Guns 12 | . . . 12 Classes Destroyed 4 | . . . 4 Watcher 1 | . . . 1 Swarmer 8 | . . . 8 Grunt 3 | . . . 3 Sentry 1 | . . . 1 Best Kill Streak 5 | . . . 5 Combat Bots Only 5 | . . . 5 Max Kills in Single Turn 1 | . . . 1 Gunslinging . | . . . . Exploded . | . . . . Melee . | . . . . Uniques/NPCs Destroyed . | . . . . Combat | -11 -10 -10 -9 -------- Run | Yrd Mat Min Mat Hostile Shots Fired 108 | . . . 108 Missed 27 | . . . 27 Hits 81 | . . . 81 Projectile 81 | . . . 81 Critical Strikes 2 | . . . 2 Damage Taken 830 | . . . 830 Core 208 | . . . 208 Absorbed by Shields . | . . . . Core Remaining (%) 100 | 100 . 100 . Volleys Fired 47 | . . 1 46 Largest 2 | . . 2 2 Hottest 90 | . . 90 90 Shots Fired 93 | . . 2 91 Gun 93 | . . 2 91 Cannon . | . . . . Launcher . | . . . . Special . | . . . . Kinetic 29 | . . . 29 Thermal 64 | . . 2 62 Explosive . | . . . . Electromagnetic . | . . . . Robot Hit Streak 8 | . . 1 8 Robot Miss Streak 4 | . . 1 4 Penetration Max . | . . . . Secondary Targets 2 | . . . 2 Max Gunslinging Chain 1 | . . . 1 Shots Hit Robots 54 | . . 1 53 Core Hits 17 | . . . 17 Critical Kills . | . . . . Critical Parts Destroyed 1 | . . . 1 Critical Strikes 1 | . . . 1 Destroy 1 | . . . 1 Melee Attacks . | . . . . Impact . | . . . . Slashing . | . . . . Piercing . | . . . . Sneak Attacks . | . . . . Combat Hostiles . | . . . . Follow-up Attacks . | . . . . Damage Inflicted 701 | . . 15 686 Guns 697 | . . 11 686 Cannons . | . . . . Explosions . | . . . . Melee . | . . . . Ramming 4 | . . 4 . Kinetic 293 | . . . 293 Thermal 404 | . . 11 393 Explosive . | . . . . Electromagnetic . | . . . . Impact . | . . . . Slashing . | . . . . Piercing . | . . . . Highest Corruption . | . . . . Average Corruption . | . . . . Corruption Purged . | . . . . Corruption Blocked . | . . . . Overload Shots . | . . . . Overflow Damage . | . . . . Projectiles . | . . . . Explosions . | . . . . Melee . | . . . . Knockbacks 1 | . . 1 . Impact 1 | . . 1 . Kinetic . | . . . . Secondary . | . . . . Self-Inflicted Damage . | . . . . Shots . | . . . . Rammed . | . . . . Targets Rammed 1 | . . 1 . Kicked 1 | . . 1 . Crushed . | . . . . Highest Temperature 402 | . . 30 402 Average Temperature 109 | . . 18 111 Received Heat Transfer 258 | . . . 258 Effects 2 | . . . 2 Energy Bleed 2 | . . . 2 Siege Activations . | . . . . Martial Activations . | . . . . Shielding Activations . | . . . . Robots Disrupted . | . . . . Combat Hostiles . | . . . . Robots Corrupted . | . . . . Combat Hostiles . | . . . . Parts Fried . | . . . . Impact Corruptions . | . . . . Robots Melted . | . . . . Combat Hostiles . | . . . . Parts Melted 3 | . . . 3 Heat Transferred 1066 | . . 25 1041 Parts Sabotaged . | . . . . Parts Stolen . | . . . . Parts Stripped . | . . . . Power Chain Reactions . | . . . . Alert | -11 -10 -10 -9 ------- Run | Yrd Mat Min Mat Maximum Alert Level . | . . . . Low Security (%) 100 | 100 100 100 100 Level 1 . | . . . . Level 2 . | . . . . Level 3 . | . . . . Level 4 . | . . . . Level 5 . | . . . . High Security . | . . . . Max Security . | . . . . Peak Influence 154 | . . . 154 Initial . | . . . . Average 50 | . . . 91 Influence Increases 301 | . . . 301 Destroy 0b10 Robot/C 240 | . . . 240 Destroy 0b10 Robot/NC 5 | . . . 5 Destroy Leader 42 | . . . 42 Successful Hack 14 | . . . 14 Influence Decreases 234 | . . . 234 Time Decay 194 | . . . 194 Lost Part 40 | . . . 40 Squads Dispatched 2 | . 1 . 1 Investigation . | . . . . Extermination . | . . . . Reinforcement 2 | . 1 . 1 Assault . | . . . . Garrison . | . . . . Intercept . | . . . . Searches Triggered . | . . . . Construction Impeded . | . . . . Haulers Reinforced . | . . . . Active Scanning Responses . | . . . . Cargo Convoy Interrupts . | . . . . Stealth | -11 -10 -10 -9 --------- Run | Yrd Mat Min Mat Distress Signals 1 | . . . 1 Communications Jammed . | . . . . Distress Signals . | . . . . Times Spotted 25 | . 4 . 21 Peak Tracking Total 6 | . 3 . 6 Tactical Retreats . | . . . . Traps | -11 -10 -10 -9 ------- Run | Yrd Mat Min Mat Traps Triggered . | . . . . Indirectly . | . . . . Trap Hack Attempts . | . . . . Triggered . | . . . . Disarmed . | . . . . Reprogrammed . | . . . . Reused . | . . . . Traps Extracted . | . . . . Installed . | . . . . Triggered . | . . . . Machines | -11 -10 -10 -9 ---------- Run | Yrd Mat Min Mat Machines Disabled . | . . . . Max in Single Turn . | . . . . Machines Repaired . | . . . . Machines Dismantled . | . . . . Machines Sabotaged . | . . . . Overloaded Fab Kills . | . . . . Hacking | -11 -10 -10 -9 --------- Run | Yrd Mat Min Mat Machines Accessed 4 | . 1 . 3 Terminals 4 | . 1 . 3 Fabricators . | . . . . Repair Stations . | . . . . Recycling Units . | . . . . Scanalyzers . | . . . . Garrison Access . | . . . . Total Hacks 12 | . 2 . 10 Successful 5 | . 1 . 4 Failed 6 | . 1 . 5 Catastrophic 4 | . 1 . 3 Database Lockouts 1 | . . . 1 Manual . | . . . . Terminals 12 | . 2 . 10 Fabricators . | . . . . Repair Stations . | . . . . Recycling Units . | . . . . Scanalyzers . | . . . . Garrison Access . | . . . . Terminal Hacks 5 | . 1 . 4 Record 5 | . 1 . 4 Fabricator Hacks . | . . . . Repair Station Hacks . | . . . . Recycling Unit Hacks . | . . . . Scanalyzer . | . . . . Garrison Access Hacks . | . . . . Unauthorized Hacks . | . . . . Terminals . | . . . . Fabricators . | . . . . Repair Stations . | . . . . Recycling Units . | . . . . Scanalyzers . | . . . . Garrison Access . | . . . . Data Cores Recovered . | . . . . Used . | . . . . Hacking Detections 4 | . 1 . 3 Full Trace Events 1 | . . . 1 Feedback Events . | . . . . Feedback Blocked . | . . . . Robot Schematics Acquired . | . . . . Robots Built . | . . . . Authchips . | . . . . Time . | . . . . Total Robot Build Rating . | . . . . Part Schematics Acquired . | . . . . Parts Built . | . . . . Authchips . | . . . . Time . | . . . . Total Part Build Rating . | . . . . Part Studies Acquired . | . . . . Parts Repaired . | . . . . Time . | . . . . Parts Recycled . | . . . . Recycled Matter . | . . . . Retrieved Matter . | . . . . Retrieved Components . | . . . . Parts Scanalyzed . | . . . . Part Schematics Acquired . | . . . . Parts Damaged . | . . . . Bothacking | -11 -10 -10 -9 ------------ Run | Yrd Mat Min Mat Used RIF Installer . | . . . . Robots Hacked . | . . . . Non-combat . | . . . . Combat . | . . . . Robot Hacks Applied . | . . . . Relay Couplers Released . | . . . . Fabnet Peak Effective % . | . . . . Robots Rewired . | . . . . Allies Hacked . | . . . . Hacks Repelled . | . . . . Allies | -11 -10 -10 -9 -------- Run | Yrd Mat Min Mat Total Allies . | . . . . Largest Group . | . . . . Highest-Rated Group . | . . . . Highest-Rated Ally . | . . . . Total Orders . | . . . . Ally Attacks . | . . . . Total Damage . | . . . . Kills . | . . . . Allies Corrupted . | . . . . Allies Melted . | . . . . Intel | -11 -10 -10 -9 ------- Run | Yrd Mat Min Mat Active Infowar (turns) . | . . . . Robot Analysis Total . | . . . . Derelict Logs Recovered 1 | . . 1 . Drone Launches . | . . . . Drone Recoveries . | . . . . Exploration | -11 -10 -10 -9 ------------- Run | Yrd Mat Min Mat Turns Passed 806 | 48 55 261 442 Spaces Moved 477 | 33 46 169 229 Core 5 | 5 . . . Treads . | . . . . Legs 472 | 28 46 169 229 Wheels . | . . . . Hover . | . . . . Flight . | . . . . Fastest Speed 50 | 50 120 120 120 Average Speed 120 | 109 120 120 121 Slowest Speed 190 | 120 120 120 190 Overloaded Moves . | . . . . Propulsion Burnouts . | . . . . Robots Hopped . | . . . . Potential Cave-ins . | . . . . Cave-ins Triggered . | . . . . Exploration Rate (%) 23 | 4 13 57 20 Regions Visited 3 Branch Regions 1 Pre-discovered Areas 1 | . . 1 . Known Exits Taken . | . . . . Unknown Exits Taken 3 | 1 1 1 . Scrap Searched . | . . . . Spaces Dug . | . . . . Terrain Destroyed . | . . . . Melee . | . . . . Projectile . | . . . . AOE . | . . . . Terrain Rammed . | . . . . Walls Destroyed . | . . . . Machines Disabled . | . . . . Actions | -11 -10 -10 -9 --------- Run | Yrd Mat Min Mat Total 617 | 45 46 225 301 Wait 68 | . . 55 13 Move 474 | 32 45 168 229 Hop . | . . . . Pick Up 15 | 7 1 . 7 Fast Attach . | . . . . Attach 9 | 6 . . 3 Detach . | . . . . Swap 2 | . . . 2 Drop 1 | . . . 1 Fire 47 | . . 1 46 Melee . | . . . . Ram . | . . . . Kick 1 | . . 1 . Crush . | . . . . Escape Stasis . | . . . . Rewire . | . . . . Trap . | . . . . Miscellaneous . | . . . . Route ------- -11/Scrapyard -10/Materials -10/Mines (discovered 2 exits: *Mat x2) -9/Materials History --------- Turn | Location | Event 26 | -11/Scrapyard | Discovered new exit (range 16) 49 | -11/Scrapyard | Entered Materials 64 | -10/Materials | Discovered new exit (range 16) 104 | -10/Materials | Entered Mines 115 | -10/Mines | Discovered new exit (range 10) 122 | -10/Mines | Learned location of Zion (-6) 127 | -10/Mines | Met a Derelict bent on vengeance 316 | -10/Mines | Build established: Mutant 356 | -10/Mines | Discovered new exit (range 8) 365 | -10/Mines | Entered Materials 365 | -9/Materials | Evolved 2 slots: Propulsion x1, Utility x1 677 | -9/Materials | Central database locked down 795 | -9/Materials | Core integrity fell below 50% 807 | -9/Materials | Self-destructed Last Messages --------------- System] until civilization in that system was presumably wiped out during the [Solar War]. ALERT: Central database lockdown, local access denied. R-06 Scavenger collects Lgt. Treads. R-06 Scavenger collects Flight Unit. Acquired 10 matter. W-16 Scout sends out distress signal. W-16 Scout destroyed. R-06 Scavenger collects Hover Unit. R-06 Scavenger collects Visual Processing Unit. Critical hit (Burn: +37). G-47 Trooper suffers critical hit (Destroy). Destroyed Aluminum Leg. G-47 Trooper destroyed. Switching to secondary target: G-34 Mercenary. Aluminum Leg destroyed. G-34 Mercenary destroyed. Lgt. Armor Plating destroyed. Hvy. Assault Rifle destroyed. Map ----- +----------------------------------------------------+ | ?????????????????????????????????????????????????? | | ?????????????????????????????????????????????????? | | ?????????????????????????????????????????????????? | | #####????????????????????????????????????????????? | | #????????????????????????????????????????????? | | #????????????????????????????????????????????? | | "" #????????????????????????????????????????????? | | "" #????????????????????????????????????????????? | | "" #????????????????????????????????????????????? | | #????????????????????????????????????????????? | | #####????????????????????????????????????????????? | | ?????????????????????????????????????????????????? | | ???????????????????????????????? ??????????????? | | #####??????????????????????????? #??????????????? | | #?????????????????????????? #??????????????? | | #?????????????#?????####### #??????????????? | | #?????????????# ?? #??????????????? | | """ #?????????????# ###????????????? | | """ #?????????????# !! ?????????????? | | """ #?????????????# """" !! #??????????????? | | #####?????????????# """" !! ???????????????? | | ??????????????????# """"[% ?????????????????? | | ?????????? #### ???????????????????? | | ?????????????? % ?????????????????????? | | ?????????????????????# ass#??????????????????????? | | ?????????????????????#% @#??????????????????????? | | ###################### s#??????????????????????? | | ##?????????????????????? | | % #?????????????????????? | | % #?????????????????????? | | %"" #?????????????????????? | | "" #?????????????????????? | | ############### "T #?????????????????????? | | ??????????????# "" #?????????????????????? | | ??????????????# "" #?????????????????????? | | ??????????????# % #?????????????????????? | | ??????????????# #?????????????????????? | | ??????????????# %""" #?????????????????????? | | ??????????????# """"" #?????????????????????? | | ???????######## """"" #?????????????????????? | | ???????# # """"" #?????????????????????? | | ???????# # """ #?????????????????????? | | ???????# """ # #?????????????????????? | | ???????# """ # #?????????????????????? | | ???????# """ # """ ###???????????????????? | | ???????# [[ [=# """"" ""#???????????????????? | | ###########+### """"" T"#???????????????????? | | # [ ==% """"" ""#???????????????????? | | # [= """ ###???????????????????? | | # % ###???????????????????? | +----------------------------------------------------+ Best States ------------- Heat Dissipation 28 Energy Generation 10 Energy Capacity 250 Matter Stores 300 Matter Capacity 300 Sight Range 16 Terrain Scan Density 10 Armor Coverage 225 Evasion (%) 55 Item Schematics ----------------- None Robot Schematics ------------------ None Fabricated ------------ Nothing Repaired ---------- Nothing Studied --------- None Alien Tech Used ----------------- None Achievements -------------- Ghost 'Em Challenges ------------ None Game ------ Seed TransportZipStreamer Manual? 0 Play Time 00:11:28 Cumulative 5.9 hours Start 2025.12.26 @ 03:05:25 End 2025.12.26 @ 03:14:58 Sessions 1 Manual Loads 0 Difficulty Rogue Special Mode None Game No. 15 Rogue 15 Adventurer 0 Explorer 0 Win Type - Total 0 Types 0/0/0/0/0/0/0/0/0/0 Lore% 4 Gallery% 10 Achievement% 7 Wizard Run 0 Options --------- Layout 1 ASCII 0 Keyboard 0 Movement Mouse Keybinds 0 Fullscreen 0 Font 20/SmallcapsGlow Map View 50x35 Zoom Use 0% Tactical HUD 0 Map Filters NONE Filters NONE Steam 1 RUN: d42ca841-fcdc-4d66-b6e1-d6a26b2f9537